Cogmind - Beta 13 @@@ ROGUE MODE // 2024.04.10 @ 15:27:26 Player: Patryk Z Result: Smashed by cave-in Performance ------------- Evolutions (0) 0 Regions Visited (0) 0 Robots Destroyed (1) 5 Value Destroyed (7) 7 Prototype IDs (0) 0 Alien Tech Used (0) 0 Bonus (0) 0 TOTAL SCORE: 12 Bonus ------- None Cogmind --------- Core Integrity 0/250 Matter 300/300 Energy 121/125 System Corruption 11% Temperature Cool (2) Movement Walking (120) Location -11/Scrapyard Parts ------- > --- POWER (1) -------- Light Ion Engine > --- PROPULSION (2) --- Aluminum Leg > --- UTILITY (2) ------ (None) > --- WEAPON (2) ------- Mining Laser > --- INVENTORY (5) ---- Wheel Wheel Compact Wheel Improved Terrain Scanner Small Laser Peak State ------------ > --- POWER ------------ Light Ion Engine > --- PROPULSION ------- Aluminum Leg Aluminum Leg > --- UTILITY ---------- Improved Terrain Scanner Launcher Guidance Computer > --- WEAPON ----------- Small Laser Mini Grenade Launcher > --- INVENTORY -------- Wheel Wheel Compact Wheel Improved Terrain Scanner Mining Laser [Rating: 13] Favorites ----------- Power Light Ion Engine Engine Light Ion Engine Propulsion Aluminum Leg Treads Light Treads Leg Aluminum Leg Wheel Wheel Utility Improved Terrain Scanner Device Improved Terrain Scanner Processor Launcher Guidance Computer Weapon Mini Grenade Launcher Energy Gun Small Laser Ballistic Gun Assault Rifle Launcher Mini Grenade Launcher Special Weapon Mining Laser Build | -11 ------- Run | Yrd Slots Evolved . | . Power . | . Propulsion . | . Utility . | . Weapon . | . Parts Attached 24 | 24 Power 3 | 3 Engine 3 | 3 Core . | . Reactor . | . Propulsion 9 | 9 Treads 2 | 2 Leg 4 | 4 Wheel 3 | 3 Hover . | . Flight . | . Utility 5 | 5 Device 4 | 4 Storage . | . Processor 1 | 1 Hackware . | . Protection . | . Artifact . | . Weapon 7 | 7 Energy Gun 3 | 3 Energy Cannon . | . Ballistic Gun 1 | 1 Ballistic Cannon . | . Launcher 1 | 1 Special Weapon 2 | 2 Impact Weapon . | . Slashing Weapon . | . Piercing Weapon . | . Special Melee Weapon . | . Unidentified Prototypes . | . Parts Lost 10 | 10 Power 1 | 1 Propulsion 3 | 3 Utility 3 | 3 Weapon 3 | 3 Highest Loss Streak 4 | 4 To Critical Strikes . | . Average Slot Usage (%) . | . Naked Turns . | . Heaviest Build 11 | 11 Greatest Support 40 | 40 Greatest Overweight (x) 3 | 3 Average Overweight (x) . | . Largest Inventory Capacity 5 | 5 Average Capacity 5 | 5 Most Carried 5 | 5 Average Carried 4 | 4 Final Capacity 5 | 5 Final Carried 5 | 5 Class Distribution -------------------- None Dominant Class ---------------- None Resources | -11 ----------- Run | Yrd Matter Collected 981 | 981 Remotely . | . Salvage Created 163 | 163 Parts 5 | 5 Haulers Intercepted . | . Recyclers Shooed 1 | 1 Parts Field Recycled . | . Retrieved Matter . | . Parts Self-Destructed . | . Prevented . | . Kills | -11 ------- Run | Yrd Combat Hostiles Destroyed 12 | 12 Guns 12 | 12 Classes Destroyed 2 | 2 Tunneler 1 | 1 Assembled 12 | 12 Best Kill Streak 2 | 2 Combat Bots Only 2 | 2 Max Kills in Single Turn 1 | 1 Gunslinging . | . Exploded . | . Melee . | . Uniques/NPCs Destroyed . | . Combat | -11 -------- Run | Yrd Hostile Shots Fired 84 | 84 Missed 20 | 20 Damage Taken 1324 | 1324 Core 285 | 285 Absorbed by Shields . | . Core Remaining (%) . | . Volleys Fired 363 | 363 Largest 2 | 2 Hottest 100 | 100 Shots Fired 405 | 405 Gun 112 | 112 Cannon . | . Launcher 43 | 43 Special 250 | 250 Kinetic 47 | 47 Thermal 304 | 304 Explosive 43 | 43 Electromagnetic 11 | 11 Robot Hit Streak 5 | 5 Robot Miss Streak 8 | 8 Penetration Max . | . Secondary Targets 1 | 1 Max Gunslinging Chain 1 | 1 Shots Hit Robots 52 | 52 Core Hits 24 | 24 Critical Kills . | . Critical Parts Destroyed . | . Critical Strikes . | . Melee Attacks . | . Impact . | . Slashing . | . Piercing . | . Sneak Attacks . | . Combat Hostiles . | . Follow-up Attacks . | . Damage Inflicted 592 | 592 Guns 592 | 592 Cannons . | . Explosions . | . Melee . | . Ramming . | . Kinetic 241 | 241 Thermal 297 | 297 Explosive . | . Electromagnetic 54 | 54 Impact . | . Slashing . | . Piercing . | . Highest Corruption . | . Average Corruption . | . Corruption Purged . | . Corruption Blocked . | . Overload Shots . | . Overflow Damage . | . Projectiles . | . Explosions . | . Melee . | . Knockbacks . | . Impact . | . Kinetic . | . Secondary . | . Self-Inflicted Damage 56 | 56 Shots 4 | 4 Rammed . | . Targets Rammed . | . Kicked . | . Crushed . | . Highest Temperature 188 | 188 Average Temperature 51 | 51 Received Heat Transfer 140 | 140 Siege Activations . | . Robots Corrupted . | . Combat Hostiles . | . Parts Fried . | . Impact Corruptions . | . Robots Melted . | . Combat Hostiles . | . Parts Melted . | . Heat Transferred 675 | 675 Parts Sabotaged . | . Parts Stolen . | . Parts Stripped . | . Power Chain Reactions . | . Alert | -11 ------- Run | Yrd Peak Influence 45 | 45 Initial . | . Average 17 | 17 Maximum Alert Level . | . Low Security (%) 100 | 100 Level 1 . | . Level 2 . | . Level 3 . | . Level 4 . | . Level 5 . | . High Security . | . Max Security . | . Squads Dispatched . | . Investigation . | . Extermination . | . Reinforcement . | . Assault . | . Garrison . | . Intercept . | . Searches Triggered . | . Construction Impeded . | . Haulers Reinforced . | . Active Scanning Responses . | . Cargo Convoy Interrupts . | . Stealth | -11 --------- Run | Yrd Distress Signals . | . Communications Jammed . | . Distress Signals . | . Times Spotted 12 | 12 Peak Tracking Total 2 | 2 Tactical Retreats . | . Traps | -11 ------- Run | Yrd Traps Triggered . | . Indirectly . | . Trap Hack Attempts . | . Triggered . | . Disarmed . | . Reprogrammed . | . Reused . | . Traps Extracted . | . Installed . | . Triggered . | . Machines | -11 ---------- Run | Yrd Machines Disabled . | . Max in Single Turn . | . Machines Repaired . | . Machines Dismantled . | . Machines Sabotaged . | . Overloaded Fab Kills . | . Hacking | -11 --------- Run | Yrd Machines Accessed . | . Terminals . | . Fabricators . | . Repair Stations . | . Recycling Units . | . Scanalyzers . | . Garrison Access . | . Total Hacks . | . Successful . | . Failed . | . Catastrophic . | . Database Lockouts . | . Manual . | . Terminals . | . Fabricators . | . Repair Stations . | . Recycling Units . | . Scanalyzers . | . Garrison Access . | . Terminal Hacks . | . Fabricator Hacks . | . Repair Station Hacks . | . Recycling Unit Hacks . | . Scanalyzer . | . Garrison Access Hacks . | . Unauthorized Hacks . | . Terminals . | . Fabricators . | . Repair Stations . | . Recycling Units . | . Scanalyzers . | . Garrison Access . | . Data Cores Recovered . | . Used . | . Hacking Detections . | . Full Trace Events . | . Feedback Events . | . Feedback Blocked . | . Robot Schematics Acquired . | . Robots Built . | . Authchips . | . Time . | . Total Robot Build Rating . | . Part Schematics Acquired . | . Parts Built . | . Authchips . | . Time . | . Total Part Build Rating . | . Parts Repaired . | . Time . | . Parts Recycled . | . Recycled Matter . | . Retrieved Matter . | . Retrieved Components . | . Parts Scanalyzed . | . Part Schematics Acquired . | . Parts Damaged . | . Bothacking | -11 ------------ Run | Yrd Used RIF Installer . | . Robots Hacked . | . Non-combat . | . Combat . | . Robot Hacks Applied . | . Relay Couplers Released . | . Fabnet Peak Effective % . | . Robots Rewired . | . Allies Hacked . | . Hacks Repelled . | . Allies | -11 -------- Run | Yrd Total Allies . | . Largest Group . | . Highest-Rated Group . | . Highest-Rated Ally . | . Total Orders . | . Ally Attacks . | . Total Damage . | . Kills . | . Allies Corrupted . | . Allies Melted . | . Intel | -11 ------- Run | Yrd Robot Analysis Total . | . Derelict Logs Recovered . | . Drone Launches . | . Drone Recoveries . | . Exploration | -11 ------------- Run | Yrd Turns Passed 85739 | 85739 Spaces Moved 3049 | 3049 Core 229 | 229 Treads 245 | 245 Legs 2363 | 2363 Wheels 212 | 212 Hover . | . Flight . | . Fastest Speed 50 | 50 Average Speed 124 | 124 Slowest Speed 200 | 200 Overloaded Moves . | . Propulsion Burnouts . | . Robots Hopped . | . Cave-ins Triggered 1 | 1 Exploration Rate (%) 91 | 91 Regions Visited . Branch Regions . Pre-discovered Areas . | . Known Exits Taken . | . Unknown Exits Taken . | . Scrap Searched . | . Spaces Dug 266 | 266 Terrain Destroyed 413 | 413 Melee . | . Projectile 132 | 132 AOE 281 | 281 Terrain Rammed . | . Walls Destroyed . | . Machines Disabled . | . Actions | -11 --------- Run | Yrd Total 84074 | 84074 Wait 80614 | 80614 Move 3048 | 3048 Hop . | . Pick Up 14 | 14 Fast Attach 14 | 14 Attach 5 | 5 Detach 1 | 1 Swap 5 | 5 Drop 10 | 10 Fire 363 | 363 Melee . | . Ram . | . Kick . | . Crush . | . Escape Stasis . | . Rewire . | . Trap . | . Miscellaneous . | . Route ------- -11/Scrapyard (discovered 1 exit: [*Mat]) History --------- Turn | Location | Event 6 | -11/Scrapyard | Discovered new exit (range 15) 1869 | -11/Scrapyard | Assembled infested the area 5139 | -11/Scrapyard | Core integrity fell below 50% 5180 | -11/Scrapyard | Core integrity fell below 20% 5203 | -11/Scrapyard | Lost 3 parts (1n1u1w) 85740 | -11/Scrapyard | Crushed by falling debris 85740 | -11/Scrapyard | Smashed by cave-in Last Messages --------------- key's current state, and defaulting to off when the program checks. Keyboard commands such as panning the map may instead move Cogmind after an Alt-Tab. To prevent this possibility, consider tapping the Alt key again after returning to Cogmind in order to reset it. See the manual for more info. You have activated your volley range indicator ('v' or the button under the VOLLEY window), useful for visualizing the range of your currently active weapons. That window and button are only visible while in targeting mode. See the manual for a detailed description of its advanced features. 85740_ The unstable cave ceiling collapses. 85740_ Crushed by falling debris. 85740_ Mni. Grenade Launcher destroyed. 85740_ System corrupted by crushing effect (+1). 85740_ Launcher Guidance Computer destroyed. 85740_ System corrupted by crushing effect (+4). 85740_ Imp. Terrain Scanner destroyed. 85740_ System corrupted by crushing effect (+1). 85740_ Aluminum Leg destroyed. 85740_ System corrupted by crushing effect (+5). Map ----- +----------------------------------------------------+ | ### # ################ # ## | | ########### ################ =## | | ########### ################ #! ## | | ### # ################ # ## | | ## # ############################# ## | | ## # ########### ######## ### # | | ## # ############ | | ## ############ # | | ## # ########### #### ## #### | | ## ## ############ ####### #### | | ## ## ############ ###### # ##### | | ## ## # #### ####### ######### | | ############!# #### ####### ######### | | ############ # #### ####### ######### | | #### ########### ####### ######### | | ### # ############ ####### ######## | | ### ########################### ######### | | ### ########################### #### ### | | #### # ########################## ## ### | | ##### ## # # ########################## ## ## | | ##################################### ### ### | | ##################################### ###### ### | | ################################### ###### ### | | ####################### ####### ######### ### | | ####################### ##### ########## # | | ###################### @ ########### # | | ###################### # ############## ## | | ##################### ## ############# ## | | ################### ##### ################ ## | | ################# ######################## # | | ################ ##########?############# # ## | | ############## #############??################### | | ############# ###############?################### | | ##############################?################### | | ################################################## | | ##############################??################## | | | | | | | | | | | | | | | | | | | | | | | | | | | | | +----------------------------------------------------+ Best States ------------- Heat Dissipation 25 Energy Generation 10 Energy Capacity 250 Matter Stores 300 Matter Capacity 300 Sight Range 16 Terrain Scan Range 16 Terrain Scan Density 10 Evasion (%) 55 Launcher Accuracy 20 Recoil Reduction 2 Item Schematics ----------------- None Robot Schematics ------------------ None Fabricated ------------ Nothing Alien Tech Used ----------------- None Achievements -------------- None Challenges ------------ None Game ------ Seed HeartHeartFlamer Manual? 0 Play Time 02:06:55 Cumulative 29.0 hours Start 2024.04.10 @ 00:32:43 End 2024.04.10 @ 15:27:26 Sessions 10 Manual Loads 0 Difficulty Rogue Special Mode None Game No. 20 Rogue 20 Adventurer 0 Explorer 0 Win Type - Total 0 Types 0/0/0/0/0/0/0/0/0 Lore% 21 Gallery% 23 Achievement% 24 Wizard Run 0 Options --------- Layout 0 ASCII 0 Keyboard 0 Movement Numpad Keybinds 0 Fullscreen 2 Font 18/SmallcapsGlow Map View 76x50 Zoom Use 1% Tactical HUD 1 Map Filters NONE Filters NONE Steam 1 RUN: 2036cf76-b542-4828-8d41-b1bc507c56de